[Event "Betsys MČR v online bleskovém šachu 2021"]
[Site "Chess.com"]
[Date "2021.04.17"]
[Round "6"]
[White "Mimochodem"]
[Black "DenryS"]
[Result "0-1"]
[WhiteElo "1793"]
[BlackElo "2097"]
[TimeControl "180+1"]
[EndTime "9:56:37 PDT"]
[Termination "Uživatel DenryS zvítězil po vzdání soupeře"]

1. e4 {[%clk 0:03:00.9]} 1... g6 {[%clk 0:02:58.9]} 2. d4 {[%clk 0:02:59.7]}
2... Bg7 {[%clk 0:02:59.8]} 3. c4 {[%clk 0:02:59.3]} 3... c5 {[%clk 0:02:59.8]}
4. d5 {[%clk 0:02:57.3]} 4... d6 {[%clk 0:02:58.3]} 5. Qc2 {[%clk 0:02:55.3]}
5... f5 {[%clk 0:02:55.5]} 6. Bd3 {[%clk 0:02:50.9]} 6... fxe4 {[%clk
0:02:54.2]} 7. Bxe4 {[%clk 0:02:50.7]} 7... Nf6 {[%clk 0:02:55.1]} 8. Bd3 {[%clk
0:02:49.6]} 8... O-O {[%clk 0:02:54.2]} 9. Ne2 {[%clk 0:02:48]} 9... e6 {[%clk
0:02:54.5]} 10. dxe6 {[%clk 0:02:45.6]} 10... Bxe6 {[%clk 0:02:54.3]} 11. O-O
{[%clk 0:02:45.6]} 11... Nc6 {[%clk 0:02:46.9]} 12. Bg5 {[%clk 0:02:45.7]} 12...
Nb4 {[%clk 0:02:42.3]} 13. Qd2 {[%clk 0:02:39.5]} 13... Nxd3 {[%clk 0:02:41.5]}
14. Qxd3 {[%clk 0:02:39.9]} 14... Qd7 {[%clk 0:02:36.3]} 15. Nbc3 {[%clk
0:02:36]} 15... Bf5 {[%clk 0:02:36.2]} 16. Qg3 {[%clk 0:02:31.5]} 16... Rae8
{[%clk 0:02:31.6]} 17. Rad1 {[%clk 0:02:29]} 17... Ne4 {[%clk 0:02:13.6]} 18.
Nxe4 {[%clk 0:02:24.1]} 18... Rxe4 {[%clk 0:02:13.2]} 19. Nc3 {[%clk 0:02:17.9]}
19... Be5 {[%clk 0:02:01.2]} 20. Qd3 {[%clk 0:02:04]} 20... Rg4 {[%clk
0:01:38.4]} 21. Qd5+ {[%clk 0:01:47.7]} 21... Be6 {[%clk 0:01:37.4]} 22. Qd2
{[%clk 0:01:47.1]} 22... Bxc4 {[%clk 0:01:11.7]} 23. Rfe1 {[%clk 0:01:38.3]}
23... Qc6 {[%clk 0:00:33.4]} 24. Nd5 {[%clk 0:01:20.1]} 24... Bxd5 {[%clk
0:00:29.2]} 25. Qxd5+ {[%clk 0:01:19.4]} 25... Qxd5 {[%clk 0:00:29.4]} 26. Rxd5
{[%clk 0:01:19.4]} 26... Rxg5 {[%clk 0:00:29.5]} 27. g3 {[%clk 0:01:03.5]} 27...
Rgf5 {[%clk 0:00:26.8]} 28. f4 {[%clk 0:01:00]} 28... Bd4+ {[%clk 0:00:26.5]}
29. Rxd4 {[%clk 0:00:54.9]} 29... cxd4 {[%clk 0:00:26]} 30. Re6 {[%clk
0:00:50.8]} 30... d3 {[%clk 0:00:24]} 31. Kf2 {[%clk 0:00:49.2]} 31... Rd5
{[%clk 0:00:23.7]} 32. Ke1 {[%clk 0:00:49.4]} 32... d2+ {[%clk 0:00:23.3]} 33.
Kd1 {[%clk 0:00:49.9]} 33... Rc8 {[%clk 0:00:23.8]} 0-1

[Event "Betsys MČR v online bleskovém šachu 2021"]
[Site "Chess.com"]
[Date "2021.04.17"]
[Round "6"]
[White "JuliliaR"]
[Black "AlenaSouralova"]
[Result "1-0"]
[WhiteElo "1320"]
[BlackElo "909"]
[TimeControl "180+1"]
[EndTime "9:56:39 PDT"]
[Termination "Uživatel JuliliaR zvítězil matem"]

1. d4 {[%clk 0:03:00.9]} 1... d5 {[%clk 0:02:58.9]} 2. c4 {[%clk 0:02:59.7]}
2... e5 {[%clk 0:02:57.7]} 3. dxe5 {[%clk 0:02:58.1]} 3... d4 {[%clk 0:02:57.6]}
4. Nf3 {[%clk 0:02:57.5]} 4... Nc6 {[%clk 0:02:56.3]} 5. Bg5 {[%clk 0:02:55.3]}
5... Be7 {[%clk 0:02:49.7]} 6. Bxe7 {[%clk 0:02:54.2]} 6... Ngxe7 {[%clk
0:02:46.7]} 7. Nbd2 {[%clk 0:02:47.8]} 7... Nxe5 {[%clk 0:02:41.3]} 8. Nxe5
{[%clk 0:02:39.5]} 8... Bf5 {[%clk 0:02:32.3]} 9. Nef3 {[%clk 0:02:35.6]} 9...
Nc6 {[%clk 0:02:26.1]} 10. g3 {[%clk 0:02:25.6]} 10... Nb4 {[%clk 0:02:23.3]}
11. Qa4+ {[%clk 0:02:13.9]} 11... Nc6 {[%clk 0:02:14.9]} 12. Qb3 {[%clk
0:01:59.9]} 12... Qd7 {[%clk 0:02:02.9]} 13. Rd1 {[%clk 0:01:50.2]} 13... O-O-O
{[%clk 0:02:00]} 14. e3 {[%clk 0:01:41.1]} 14... dxe3 {[%clk 0:01:54.4]} 15.
fxe3 {[%clk 0:01:34.2]} 15... Rde8 {[%clk 0:01:44]} 16. Kf2 {[%clk 0:01:31.9]}
16... Bg4 {[%clk 0:01:23.3]} 17. Bg2 {[%clk 0:01:26.4]} 17... f5 {[%clk
0:01:15.2]} 18. h3 {[%clk 0:01:13.9]} 18... Bxf3 {[%clk 0:01:08.7]} 19. Nxf3
{[%clk 0:01:10.9]} 19... Qf7 {[%clk 0:00:27.1]} 20. Nd4 {[%clk 0:01:09.5]} 20...
Nxd4 {[%clk 0:00:21.5]} 21. Qxb7+ {[%clk 0:01:07]} 21... Kd7 {[%clk 0:00:18.8]}
22. Rxd4+ {[%clk 0:01:05.6]} 22... Ke6 {[%clk 0:00:16.5]} 23. Bd5+ {[%clk
0:00:58.4]} 23... Ke7 {[%clk 0:00:16.5]} 24. Bxf7 {[%clk 0:00:56.5]} 24... Kxf7
{[%clk 0:00:17.4]} 25. Qxc7+ {[%clk 0:00:55.8]} 25... Kf8 {[%clk 0:00:16.5]} 26.
Rd7 {[%clk 0:00:49.2]} 26... g5 {[%clk 0:00:08.6]} 27. Rf7+ {[%clk 0:00:48.5]}
27... Kg8 {[%clk 0:00:08.3]} 28. Rg7+ {[%clk 0:00:48.1]} 28... Kf8 {[%clk
0:00:08]} 29. Qf7# {[%clk 0:00:47.6]} 1-0

[Event "Betsys MČR v online bleskovém šachu 2021"]
[Site "Chess.com"]
[Date "2021.04.17"]
[Round "6"]
[White "Evca64"]
[Black "Tomasbezdek07"]
[Result "1-0"]
[WhiteElo "2072"]
[BlackElo "1704"]
[TimeControl "180+1"]
[EndTime "9:56:40 PDT"]
[Termination "Uživatel Evca64 zvítězil po vzdání soupeře"]

1. e4 {[%clk 0:03:00.9]} 1... d6 {[%clk 0:02:59.2]} 2. d4 {[%clk 0:03:00.4]}
2... Nf6 {[%clk 0:02:59.6]} 3. Nc3 {[%clk 0:02:59.7]} 3... Nbd7 {[%clk
0:03:00.2]} 4. f4 {[%clk 0:02:58.6]} 4... e5 {[%clk 0:02:59.8]} 5. Nf3 {[%clk
0:02:56.6]} 5... exd4 {[%clk 0:02:58.5]} 6. Nxd4 {[%clk 0:02:55.5]} 6... Nc5
{[%clk 0:02:57.2]} 7. Bd3 {[%clk 0:02:50.1]} 7... Bg4 {[%clk 0:02:53.4]} 8. Nde2
{[%clk 0:02:34.4]} 8... Be7 {[%clk 0:02:47.9]} 9. O-O {[%clk 0:02:32.5]} 9...
O-O {[%clk 0:02:45.8]} 10. h3 {[%clk 0:02:32]} 10... Bxe2 {[%clk 0:02:38]} 11.
Qxe2 {[%clk 0:02:29.7]} 11... c6 {[%clk 0:02:27.1]} 12. Be3 {[%clk 0:02:24.8]}
12... Nxd3 {[%clk 0:02:23.2]} 13. Qxd3 {[%clk 0:02:22.4]} 13... d5 {[%clk
0:02:21.7]} 14. exd5 {[%clk 0:02:20.4]} 14... Nxd5 {[%clk 0:02:20.9]} 15. Nxd5
{[%clk 0:02:20]} 15... Qxd5 {[%clk 0:02:19.5]} 16. Qxd5 {[%clk 0:02:19.7]} 16...
cxd5 {[%clk 0:02:19.4]} 17. c3 {[%clk 0:02:18.4]} 17... Rfe8 {[%clk 0:02:11.1]}
18. Bd4 {[%clk 0:02:16.1]} 18... Bh4 {[%clk 0:02:01.4]} 19. Bf2 {[%clk
0:02:11.4]} 19... Bxf2+ {[%clk 0:01:57.7]} 20. Rxf2 {[%clk 0:02:11.2]} 20... Re4
{[%clk 0:01:58.1]} 21. Rd1 {[%clk 0:02:10.5]} 21... Rd8 {[%clk 0:01:57.5]} 22.
g3 {[%clk 0:02:09.2]} 22... d4 {[%clk 0:01:54.2]} 23. Rfd2 {[%clk 0:02:05.9]}
23... Rde8 {[%clk 0:01:44.5]} 24. Rxd4 {[%clk 0:02:01.7]} 24... Re3 {[%clk
0:01:44.4]} 25. R4d3 {[%clk 0:01:58]} 25... Re2 {[%clk 0:01:43.3]} 26. R1d2
{[%clk 0:01:54.2]} 26... Re1+ {[%clk 0:01:42.8]} 27. Kf2 {[%clk 0:01:53.4]}
27... h6 {[%clk 0:01:41.6]} 28. Rd7 {[%clk 0:01:49.1]} 28... R1e7 {[%clk
0:01:36.6]} 29. Rxe7 {[%clk 0:01:48.3]} 29... Rxe7 {[%clk 0:01:37]} 30. Rd8+
{[%clk 0:01:47.1]} 30... Kh7 {[%clk 0:01:35.8]} 31. Rb8 {[%clk 0:01:46.9]} 31...
Kg6 {[%clk 0:01:35.7]} 32. Kf3 {[%clk 0:01:45.9]} 32... Kf5 {[%clk 0:01:33.7]}
33. g4+ {[%clk 0:01:45.6]} 33... Kf6 {[%clk 0:01:33.6]} 34. c4 {[%clk
0:01:43.3]} 34... g5 {[%clk 0:01:31.5]} 35. b4 {[%clk 0:01:35.8]} 35... Rd7
{[%clk 0:01:14.2]} 36. fxg5+ {[%clk 0:01:25.6]} 36... hxg5 {[%clk 0:01:12.7]}
37. c5 {[%clk 0:01:24.4]} 37... Rd3+ {[%clk 0:01:11.7]} 38. Ke4 {[%clk
0:01:23.5]} 38... Rxh3 {[%clk 0:01:11.2]} 39. Rxb7 {[%clk 0:01:22.9]} 39... Rg3
{[%clk 0:01:10.7]} 40. c6 {[%clk 0:01:20.1]} 40... Rxg4+ {[%clk 0:01:10.5]} 41.
Kd5 {[%clk 0:01:17.7]} 41... Rg1 {[%clk 0:01:03.6]} 42. Rb5 {[%clk 0:01:05]}
42... g4 {[%clk 0:00:58.7]} 43. c7 {[%clk 0:01:04]} 43... Rd1+ {[%clk
0:00:52.9]} 44. Ke4 {[%clk 0:01:02.4]} 1-0

[Event "Betsys MČR v online bleskovém šachu 2021"]
[Site "Chess.com"]
[Date "2021.04.17"]
[Round "6"]
[White "matycz07"]
[Black "Mikulas19"]
[Result "0-1"]
[WhiteElo "1013"]
[BlackElo "1857"]
[TimeControl "180+1"]
[EndTime "9:56:41 PDT"]
[Termination "Uživatel Mikulas19 zvítězil matem"]

1. e4 {[%clk 0:03:00.9]} 1... e5 {[%clk 0:02:59.5]} 2. Nf3 {[%clk 0:03:00.4]}
2... Nf6 {[%clk 0:02:59.6]} 3. Bc4 {[%clk 0:02:58.9]} 3... Nxe4 {[%clk
0:02:44.8]} 4. d3 {[%clk 0:02:52.2]} 4... Nf6 {[%clk 0:02:25.6]} 5. Ng5 {[%clk
0:02:51.1]} 5... d5 {[%clk 0:02:22.2]} 6. Bb3 {[%clk 0:02:49.5]} 6... h6 {[%clk
0:02:19.5]} 7. Nh3 {[%clk 0:02:45.3]} 7... Bd6 {[%clk 0:02:17.7]} 8. Nc3 {[%clk
0:02:44.9]} 8... c6 {[%clk 0:02:16.6]} 9. O-O {[%clk 0:02:42.4]} 9... O-O {[%clk
0:02:12.8]} 10. d4 {[%clk 0:02:39]} 10... e4 {[%clk 0:01:56.5]} 11. Bf4 {[%clk
0:02:36.1]} 11... Bxh3 {[%clk 0:01:49]} 12. gxh3 {[%clk 0:02:32.9]} 12... Bxf4
{[%clk 0:01:48]} 13. f3 {[%clk 0:02:26.6]} 13... exf3 {[%clk 0:01:36.7]} 14.
Qxf3 {[%clk 0:02:25.3]} 14... Bd6 {[%clk 0:01:35.3]} 15. Kh1 {[%clk 0:02:18.9]}
15... Nbd7 {[%clk 0:01:33.8]} 16. Rg1 {[%clk 0:02:18.1]} 16... Kh7 {[%clk
0:01:25.3]} 17. Qg2 {[%clk 0:02:15.3]} 17... g6 {[%clk 0:01:21.8]} 18. Ne2
{[%clk 0:02:12.1]} 18... Nh5 {[%clk 0:01:20.9]} 19. c3 {[%clk 0:02:04.5]} 19...
Ndf6 {[%clk 0:01:15.2]} 20. Bc2 {[%clk 0:02:00]} 20... Ne4 {[%clk 0:00:51.2]}
21. Bxe4 {[%clk 0:01:52.2]} 21... dxe4 {[%clk 0:00:52.1]} 22. Qxe4 {[%clk
0:01:51]} 22... Qe7 {[%clk 0:00:46.7]} 23. Rxg6 {[%clk 0:01:49.4]} 23... Qxe4+
{[%clk 0:00:45.5]} 24. Rg2 {[%clk 0:01:46.1]} 24... Rg8 {[%clk 0:00:44.3]} 25.
Rg1 {[%clk 0:01:45]} 25... Rxg2 {[%clk 0:00:44.1]} 26. Rxg2 {[%clk 0:01:44.7]}
26... Rg8 {[%clk 0:00:44.2]} 27. Ng3 {[%clk 0:01:41.9]} 27... Qe1+ {[%clk
0:00:37.1]} 28. Rg1 {[%clk 0:01:40.5]} 28... Nxg3+ {[%clk 0:00:36.1]} 29. hxg3
{[%clk 0:01:40.6]} 29... Qe4+ {[%clk 0:00:33.2]} 30. Rg2 {[%clk 0:01:40.2]}
30... Rxg3 {[%clk 0:00:31.7]} 31. h4 {[%clk 0:00:28]} 31... Qxg2# {[%clk
0:00:32.6]} 0-1

[Event "Betsys MČR v online bleskovém šachu 2021"]
[Site "Chess.com"]
[Date "2021.04.17"]
[Round "6"]
[White "Jacques_se_mas"]
[Black "Drak1961"]
[Result "0-1"]
[WhiteElo "1748"]
[BlackElo "2088"]
[TimeControl "180+1"]
[EndTime "9:56:42 PDT"]
[Termination "Uživatel Drak1961 zvítězil na čas"]

1. d4 {[%clk 0:03:00.9]} 1... Nf6 {[%clk 0:02:58.5]} 2. Bg5 {[%clk 0:03:00.3]}
2... g6 {[%clk 0:02:54.3]} 3. Bxf6 {[%clk 0:02:58.7]} 3... exf6 {[%clk
0:02:53.7]} 4. e3 {[%clk 0:02:58.8]} 4... d5 {[%clk 0:02:52.9]} 5. g3 {[%clk
0:02:56.7]} 5... Be7 {[%clk 0:02:52]} 6. Bg2 {[%clk 0:02:57]} 6... c6 {[%clk
0:02:50.2]} 7. c4 {[%clk 0:02:55]} 7... dxc4 {[%clk 0:02:41.9]} 8. Nc3 {[%clk
0:02:49.3]} 8... Be6 {[%clk 0:02:32]} 9. Nge2 {[%clk 0:02:44.7]} 9... Qb6 {[%clk
0:02:29.6]} 10. Qd2 {[%clk 0:02:34.4]} 10... Na6 {[%clk 0:02:22.3]} 11. a3
{[%clk 0:02:33.7]} 11... Rd8 {[%clk 0:02:17.1]} 12. O-O {[%clk 0:02:21.3]} 12...
O-O {[%clk 0:02:08.7]} 13. Nf4 {[%clk 0:02:11.8]} 13... Qc7 {[%clk 0:02:05.5]}
14. Qe2 {[%clk 0:01:59.1]} 14... b5 {[%clk 0:02:03.9]} 15. Nxe6 {[%clk
0:01:48.8]} 15... fxe6 {[%clk 0:02:02.8]} 16. Qf3 {[%clk 0:01:48.6]} 16... Nb8
{[%clk 0:02:00.2]} 17. Bh3 {[%clk 0:01:46.2]} 17... f5 {[%clk 0:01:57.9]} 18.
Kh1 {[%clk 0:01:38.4]} 18... a6 {[%clk 0:01:52.1]} 19. a4 {[%clk 0:01:29.7]}
19... b4 {[%clk 0:01:50.6]} 20. Na2 {[%clk 0:01:24.3]} 20... c5 {[%clk
0:01:49.9]} 21. dxc5 {[%clk 0:01:18]} 21... Qxc5 {[%clk 0:01:44.4]} 22. Rfc1
{[%clk 0:01:12.6]} 22... Bf6 {[%clk 0:01:37.3]} 23. Rab1 {[%clk 0:01:06]} 23...
Nc6 {[%clk 0:01:35]} 24. Bg2 {[%clk 0:01:05.6]} 24... Na5 {[%clk 0:01:32.6]} 25.
Qf4 {[%clk 0:00:57.5]} 25... Rd2 {[%clk 0:01:29.7]} 26. Bf3 {[%clk 0:00:28]}
26... Bxb2 {[%clk 0:01:27.7]} 27. Rd1 {[%clk 0:00:24.1]} 27... Rxd1+ {[%clk
0:01:07.1]} 28. Rxd1 {[%clk 0:00:25]} 28... Bg7 {[%clk 0:01:05.6]} 29. Rc1
{[%clk 0:00:13.7]} 29... b3 {[%clk 0:01:03.1]} 30. Nc3 {[%clk 0:00:10.5]} 30...
b2 {[%clk 0:01:01.6]} 0-1

[Event "Betsys MČR v online bleskovém šachu 2021"]
[Site "Chess.com"]
[Date "2021.04.17"]
[Round "6"]
[White "LiborRojar"]
[Black "SamikGame"]
[Result "1-0"]
[WhiteElo "2067"]
[BlackElo "1663"]
[TimeControl "180+1"]
[EndTime "9:56:47 PDT"]
[Termination "Uživatel LiborRojar zvítězil na čas"]

1. e4 {[%clk 0:03:00.9]} 1... e5 {[%clk 0:02:57.9]} 2. Nf3 {[%clk 0:03:00.4]}
2... Nc6 {[%clk 0:02:55.8]} 3. Bb5 {[%clk 0:03:00]} 3... Bc5 {[%clk 0:02:52]} 4.
O-O {[%clk 0:02:59.2]} 4... Qf6 {[%clk 0:02:49.6]} 5. Nc3 {[%clk 0:02:56.2]}
5... Nge7 {[%clk 0:02:43.4]} 6. d3 {[%clk 0:02:55.6]} 6... h6 {[%clk 0:02:40.4]}
7. Nd5 {[%clk 0:02:48.8]} 7... Nxd5 {[%clk 0:02:37.4]} 8. exd5 {[%clk
0:02:48.5]} 8... Ne7 {[%clk 0:02:32.7]} 9. Qe2 {[%clk 0:02:45.4]} 9... O-O
{[%clk 0:02:11.6]} 10. Qxe5 {[%clk 0:02:18.4]} 10... Qxe5 {[%clk 0:02:11.2]} 11.
Nxe5 {[%clk 0:02:17.9]} 11... d6 {[%clk 0:02:11.7]} 12. Nf3 {[%clk 0:02:15]}
12... Nxd5 {[%clk 0:02:09.9]} 13. Bc4 {[%clk 0:02:11.3]} 13... Nf6 {[%clk
0:02:05.6]} 14. d4 {[%clk 0:02:08.3]} 14... d5 {[%clk 0:01:55.5]} 15. Bb3 {[%clk
0:02:04.5]} 15... Bb6 {[%clk 0:01:49.4]} 16. Bf4 {[%clk 0:02:01.6]} 16... Re8
{[%clk 0:01:44.5]} 17. Rfe1 {[%clk 0:02:01]} 17... Bg4 {[%clk 0:01:34.8]} 18. c3
{[%clk 0:01:55]} 18... Bxf3 {[%clk 0:01:26.2]} 19. gxf3 {[%clk 0:01:54.5]} 19...
Nh5 {[%clk 0:01:17.1]} 20. Bd2 {[%clk 0:01:48.3]} 20... c5 {[%clk 0:01:10]} 21.
dxc5 {[%clk 0:01:34.4]} 21... Bxc5 {[%clk 0:01:10.2]} 22. Bxd5 {[%clk
0:01:34.4]} 22... Red8 {[%clk 0:01:06.7]} 23. c4 {[%clk 0:01:26.8]} 23... Nf6
{[%clk 0:01:01.8]} 24. Ba5 {[%clk 0:01:19.9]} 24... Rd7 {[%clk 0:00:43.6]} 25.
Rad1 {[%clk 0:01:15.7]} 25... Nxd5 {[%clk 0:00:39.5]} 26. Rxd5 {[%clk
0:01:11.4]} 26... Rxd5 {[%clk 0:00:39.5]} 27. cxd5 {[%clk 0:01:11.5]} 27... b6
{[%clk 0:00:36.5]} 28. Bc3 {[%clk 0:01:10.4]} 28... Rd8 {[%clk 0:00:29.5]} 29.
Rd1 {[%clk 0:01:09.7]} 29... a6 {[%clk 0:00:19.3]} 30. b4 {[%clk 0:01:07.4]}
30... Bd6 {[%clk 0:00:16.1]} 31. h3 {[%clk 0:01:06.3]} 31... b5 {[%clk 0:00:13]}
32. a3 {[%clk 0:01:03.2]} 32... Bf4 {[%clk 0:00:09.5]} 33. Kf1 {[%clk
0:00:57.3]} 33... f6 {[%clk 0:00:02.7]} 34. Ke2 {[%clk 0:00:57.3]} 1-0

[Event "Betsys MČR v online bleskovém šachu 2021"]
[Site "Chess.com"]
[Date "2021.04.17"]
[Round "6"]
[White "MaTpAt113"]
[Black "Michal5"]
[Result "0-1"]
[WhiteElo "850"]
[BlackElo "1202"]
[TimeControl "180+1"]
[EndTime "9:56:50 PDT"]
[Termination "Uživatel Michal5 zvítězil po vzdání soupeře"]

1. e4 {[%clk 0:03:00.9]} 1... c5 {[%clk 0:02:59.2]} 2. Nf3 {[%clk 0:02:59.1]}
2... d6 {[%clk 0:02:58.9]} 3. d4 {[%clk 0:02:58.5]} 3... cxd4 {[%clk 0:02:53.3]}
4. Nxd4 {[%clk 0:02:57.6]} 4... Nf6 {[%clk 0:02:52.7]} 5. Nc3 {[%clk 0:02:56.1]}
5... g6 {[%clk 0:02:52.6]} 6. Bc4 {[%clk 0:02:55.8]} 6... Bg7 {[%clk 0:02:52.3]}
7. Bf4 {[%clk 0:02:50.7]} 7... O-O {[%clk 0:02:51.5]} 8. e5 {[%clk 0:02:50.2]}
8... dxe5 {[%clk 0:02:50.6]} 9. Bxe5 {[%clk 0:02:50]} 9... Nc6 {[%clk
0:02:43.8]} 10. Nxc6 {[%clk 0:02:32.7]} 10... Qxd1+ {[%clk 0:02:42.9]} 11. Rxd1
{[%clk 0:02:31.8]} 11... bxc6 {[%clk 0:02:43.8]} 12. Bxf6 {[%clk 0:02:30.4]}
12... Bxf6 {[%clk 0:02:43.4]} 13. Ne4 {[%clk 0:02:30]} 13... Bxb2 {[%clk
0:02:41.1]} 14. O-O {[%clk 0:02:27.3]} 14... Be5 {[%clk 0:02:38.9]} 15. h3
{[%clk 0:02:24.7]} 15... Bf5 {[%clk 0:02:38.3]} 16. Nc5 {[%clk 0:02:20.9]} 16...
Rad8 {[%clk 0:02:19.9]} 17. Rxd8 {[%clk 0:02:13.5]} 17... Rxd8 {[%clk
0:02:20.8]} 18. Nb7 {[%clk 0:02:07]} 18... Rb8 {[%clk 0:02:14.7]} 19. Nc5 {[%clk
0:02:05]} 19... Rb2 {[%clk 0:02:09]} 20. Nd3 {[%clk 0:01:55.1]} 20... Bxd3
{[%clk 0:01:42.4]} 21. cxd3 {[%clk 0:01:53.8]} 21... a5 {[%clk 0:01:38.6]} 22.
a4 {[%clk 0:01:42.7]} 22... Rb4 {[%clk 0:01:32.1]} 23. Ba2 {[%clk 0:01:32.8]}
23... Rxa4 {[%clk 0:01:30.9]} 24. Bc4 {[%clk 0:01:31.9]} 24... e6 {[%clk
0:01:27.6]} 25. Rb1 {[%clk 0:01:28.8]} 25... Kf8 {[%clk 0:01:25.2]} 26. Rb6
{[%clk 0:01:25.4]} 26... c5 {[%clk 0:01:17.8]} 27. Rb5 {[%clk 0:01:23.9]} 27...
Bd4 {[%clk 0:01:16.1]} 28. Rb8+ {[%clk 0:01:20]} 28... Ke7 {[%clk 0:01:15]} 29.
Bb5 {[%clk 0:01:10.8]} 29... Rb4 {[%clk 0:01:10.6]} 30. Rb7+ {[%clk 0:01:01.5]}
30... Kd6 {[%clk 0:01:06.4]} 31. Rb6+ {[%clk 0:00:58.1]} 31... Kc7 {[%clk
0:01:03.9]} 32. Rc6+ {[%clk 0:00:57.1]} 32... Kb7 {[%clk 0:01:02.6]} 33. Rxc5
{[%clk 0:00:28.5]} 33... Bxc5 {[%clk 0:01:00.8]} 34. Bc4 {[%clk 0:00:28.3]}
34... Rb1+ {[%clk 0:01:00.1]} 35. Kh2 {[%clk 0:00:27.7]} 35... Bd6+ {[%clk
0:01:00.8]} 36. g3 {[%clk 0:00:26.4]} 36... Rb2 {[%clk 0:00:59.5]} 37. Kg2
{[%clk 0:00:26.2]} 37... Bc5 {[%clk 0:00:59]} 38. Kf3 {[%clk 0:00:24.9]} 38...
Rxf2+ {[%clk 0:00:57.9]} 39. Ke4 {[%clk 0:00:23.7]} 39... f5+ {[%clk 0:00:56.5]}
40. Ke5 {[%clk 0:00:23.2]} 40... Re2+ {[%clk 0:00:56.1]} 41. Kf6 {[%clk
0:00:20.7]} 0-1

[Event "Betsys MČR v online bleskovém šachu 2021"]
[Site "Chess.com"]
[Date "2021.04.17"]
[Round "6"]
[White "Cenisuh"]
[Black "iDarkTraveler"]
[Result "0-1"]
[WhiteElo "1601"]
[BlackElo "1955"]
[TimeControl "180+1"]
[EndTime "9:56:51 PDT"]
[Termination "Uživatel iDarkTraveler zvítězil na čas"]

1. d4 {[%clk 0:03:00.9]} 1... d5 {[%clk 0:02:59.3]} 2. Nf3 {[%clk 0:03:01]} 2...
Nf6 {[%clk 0:02:56.7]} 3. g3 {[%clk 0:03:01.5]} 3... Bf5 {[%clk 0:02:55.1]} 4.
Bg2 {[%clk 0:03:02]} 4... c6 {[%clk 0:02:55.3]} 5. O-O {[%clk 0:03:01.5]} 5...
g6 {[%clk 0:02:54.8]} 6. b3 {[%clk 0:03:01.8]} 6... Bg7 {[%clk 0:02:55.1]} 7. e3
{[%clk 0:03:00.7]} 7... O-O {[%clk 0:02:50.7]} 8. c4 {[%clk 0:03:00.8]} 8... Ne4
{[%clk 0:02:23.3]} 9. Bb2 {[%clk 0:02:49.7]} 9... Qa5 {[%clk 0:02:12.5]} 10.
Nbd2 {[%clk 0:02:37.6]} 10... Nc3 {[%clk 0:02:06.7]} 11. Bxc3 {[%clk 0:02:26.5]}
11... Qxc3 {[%clk 0:02:07.6]} 12. Rc1 {[%clk 0:02:16.7]} 12... Qb2 {[%clk
0:02:04.2]} 13. cxd5 {[%clk 0:02:11.3]} 13... cxd5 {[%clk 0:01:58.9]} 14. a4
{[%clk 0:01:57.8]} 14... Nc6 {[%clk 0:01:56.3]} 15. Ne5 {[%clk 0:01:38]} 15...
Nxe5 {[%clk 0:01:42.1]} 16. dxe5 {[%clk 0:01:37.3]} 16... Bxe5 {[%clk
0:01:39.5]} 17. Bxd5 {[%clk 0:01:30.7]} 17... Bh3 {[%clk 0:01:25.4]} 18. Nc4
{[%clk 0:01:15.8]} 18... Qa2 {[%clk 0:00:39.4]} 19. Nxe5 {[%clk 0:01:15.2]}
19... Bxf1 {[%clk 0:00:38.7]} 20. Qxf1 {[%clk 0:01:11.7]} 20... e6 {[%clk
0:00:32.1]} 21. Bc4 {[%clk 0:01:08.7]} 21... Qb2 {[%clk 0:00:27]} 22. Nd3 {[%clk
0:00:57.3]} 22... Qg7 {[%clk 0:00:27]} 0-1

[Event "Betsys MČR v online bleskovém šachu 2021"]
[Site "Chess.com"]
[Date "2021.04.17"]
[Round "6"]
[White "Jeff_CZE"]
[Black "Qb1xh8"]
[Result "0-1"]
[WhiteElo "1850"]
[BlackElo "2144"]
[TimeControl "180+1"]
[EndTime "9:56:54 PDT"]
[Termination "Uživatel Qb1xh8 zvítězil na čas"]

1. d4 {[%clk 0:03:00.9]} 1... Nf6 {[%clk 0:02:59.6]} 2. c4 {[%clk 0:02:56.1]}
2... c5 {[%clk 0:02:59.5]} 3. d5 {[%clk 0:02:55.2]} 3... b5 {[%clk 0:02:59.1]}
4. cxb5 {[%clk 0:02:56.1]} 4... a6 {[%clk 0:02:59.3]} 5. bxa6 {[%clk 0:02:57]}
5... Bxa6 {[%clk 0:02:59.8]} 6. Nf3 {[%clk 0:02:54.1]} 6... d6 {[%clk
0:02:59.9]} 7. Nc3 {[%clk 0:02:52.5]} 7... g6 {[%clk 0:02:58.6]} 8. e4 {[%clk
0:02:52.5]} 8... Bxf1 {[%clk 0:02:58.7]} 9. Kxf1 {[%clk 0:02:53.4]} 9... Bg7
{[%clk 0:02:59.2]} 10. g3 {[%clk 0:02:53.9]} 10... O-O {[%clk 0:02:58.4]} 11. h3
{[%clk 0:02:52.8]} 11... Nbd7 {[%clk 0:02:58]} 12. Kg2 {[%clk 0:02:53.3]} 12...
Qa5 {[%clk 0:02:57.8]} 13. Qc2 {[%clk 0:02:51.3]} 13... Rfb8 {[%clk 0:02:57.9]}
14. Rd1 {[%clk 0:02:48.5]} 14... Nb6 {[%clk 0:02:49.5]} 15. Nd2 {[%clk
0:02:31.8]} 15... c4 {[%clk 0:02:28]} 16. Nf3 {[%clk 0:02:20.4]} 16... Nfd7
{[%clk 0:02:27.4]} 17. Be3 {[%clk 0:02:10.2]} 17... Nc5 {[%clk 0:02:14.2]} 18.
Nd4 {[%clk 0:02:06.3]} 18... Bxd4 {[%clk 0:02:05]} 19. Bxd4 {[%clk 0:02:07.2]}
19... Nd3 {[%clk 0:02:04.8]} 20. b3 {[%clk 0:01:45.2]} 20... Ne5 {[%clk
0:01:43.5]} 21. Bxe5 {[%clk 0:01:40.8]} 21... dxe5 {[%clk 0:01:43.3]} 22. bxc4
{[%clk 0:01:33.2]} 22... Nxc4 {[%clk 0:01:43.1]} 23. Rab1 {[%clk 0:01:22.9]}
23... Na3 {[%clk 0:01:36.8]} 24. Rxb8+ {[%clk 0:01:20.8]} 24... Rxb8 {[%clk
0:01:37.7]} 25. Qc1 {[%clk 0:00:56.3]} 25... Rc8 {[%clk 0:01:36.4]} 26. Rd3
{[%clk 0:00:20.2]} 26... Nb5 {[%clk 0:01:35]} 27. Qb2 {[%clk 0:00:12.3]} 27...
Nxc3 {[%clk 0:01:26.7]} 28. h4 {[%clk 0:00:12.1]} 28... h5 {[%clk 0:01:07.8]}
29. Qb7 {[%clk 0:00:11.6]} 29... Qc7 {[%clk 0:01:03.6]} 30. Qb4 {[%clk
0:00:06.7]} 30... Qc5 {[%clk 0:01:02.8]} 31. Qb7 {[%clk 0:00:05]} 31... Nxe4
{[%clk 0:01:01.1]} 32. Rf3 {[%clk 0:00:04.2]} 32... Qc7 {[%clk 0:00:52.5]} 33.
Qb4 {[%clk 0:00:01.9]} 33... Nd6 {[%clk 0:00:50.7]} 0-1